bitfinex/quotes_SOLUSD_20251124
["timestamp","ask_amount","ask_price","bid_price","bid_amount"]
[1763980428651,0.14391301,129.17,129.15,14.25572279]
[1763980430318,0.14391301,129.17,129.14,0.2]
[1763980431348,4.32473353,129.16,129.14,0.2]
[1763980432622,4.32473353,129.15,129.14,61.5347265]
[1763980432816,4.32473353,129.15,129.14,0.2]
[1763980433831,0.14391301,129.17,129.14,0.2]
[1763980434024,4.32473353,129.16,129.14,0.2]
[1763980434554,4.32473353,129.15,129.14,0.2]
[1763980439339,22.44569353,129.15,129.14,0.2]
[1763980440631,57.38066432,129.15,129.14,0.2]
[1763980440835,0.14216157,129.13,129.11,0.2]
[1763980441036,12.06474952,129.12,129.11,0.2]
[1763980442333,30.18570952,129.12,129.11,0.2]
[1763980442663,12.20691109,129.12,129.11,0.2]
[1763980444875,30.18570952,129.12,129.11,0.2]
[1763980445241,12.20691109,129.12,129.11,0.2]
[1763980445448,40.11669878,129.12,129.11,0.2]
[1763980445763,9.93098926,129.11,129.07,0.2]
[1763980445965,30.18570952,129.08,129.07,0.2]
[1763980446743,18.12096,129.08,129.07,0.2]
[1763980446954,30.18570952,129.08,129.07,0.2]
[1763980447762,30.32787109,129.08,129.07,0.2]
[1763980449654,30.18570952,129.08,129.07,0.2]
[1763980452669,25.82398461,129.08,129.07,0.2]
[1763980453454,7.70302461,129.08,129.07,0.2]
[1763980453859,7.70302461,129.09,129.07,0.2]
[1763980455072,7.70302461,129.08,129.07,0.2]
[1763980457475,8.6714163,129.08,129.07,0.2]
[1763980459258,8.81357787,129.08,129.07,0.2]
[1763980460961,22.00567275,129.08,129.07,0.2]
[1763980461965,19.23151326,129.08,129.07,0.2]
[1763980462173,22.00567275,129.08,129.07,0.2]
[1763980463588,19.08935169,129.08,129.07,0.2]
[1763980463773,21.86351118,129.08,129.07,0.2]
[1763980465068,0.96824167,129.1,129.07,0.2]
[1763980465269,2.77415949,129.09,129.07,0.2]
[1763980465491,2.77415949,129.08,129.07,0.2]
[1763980466190,2.92281036,129.08,129.07,0.2]
[1763980466394,3.89120205,129.08,129.07,0.2]
[1763980467286,22.15432362,129.08,129.07,0.2]
[1763980472797,43.03978927,129.08,129.07,0.2]
[1763980473102,9.93098926,129.07,129.01,39.13934909]
[1763980473284,2.77415949,129.02,129.01,39.13934909]
[1763980478304,18.12096,129.02,129.01,39.13934909]
[1763980478491,20.89511949,129.02,129.01,39.13934909]
[1763980479481,2.77415949,129.02,129.01,39.13934909]
[1763980481106,19.08957681,129.05,129.01,39.13934909]
[1763980481415,2.77415949,129.03,129.01,100.47407559]
[1763980481711,2.77415949,129.02,129.01,100.47407559]
[1763980482000,2.77415949,129.02,129.01,39.13934909]
[1763980482802,2.77415949,129.03,129.01,39.13934909]
[1763980483103,2.77415949,129.05,129.01,39.13934909]
[1763980483296,2.77415949,129.06,129.01,103.24823508]
[1763980483486,2.77415949,129.06,129.01,41.91350858]
[1763980483804,2.77415949,129.07,129.02,2.77415949]
[1763980483993,2.92281036,129.08,129.03,2.77415949]
[1763980484184,21.04377036,129.08,129.03,2.77415949]
[1763980484383,2.92281036,129.08,129.03,2.77415949]
[1763980484706,2.77415949,129.04,129.01,39.13934909]
[1763980484899,2.77415949,129.02,129.01,39.13934909]
[1763980485203,2.77415949,129.04,129.01,39.13934909]
[1763980485584,2.77415949,129.03,129.01,39.13934909]
[1763980485800,2.77415949,129.04,129.01,39.13934909]
[1763980486187,0.14831227,129.02,129.01,39.13934909]
[1763980486584,0.14831227,129.02,129.01,41.91350858]
[1763980487693,0.14831227,129.02,129.01,51.84449784]
[1763980489005,0.14831227,129.02,129.01,51.70233627]
[1763980489904,0.14831227,129.02,129.01,39.13934909]
[1763980492403,0.14831227,129.02,129.01,41.91350858]
[1763980493704,0.14831227,129.02,129.01,39.13934909]
[1763980493892,0.14831227,129.02,129.01,103.39039665]
[1763980494091,0.15283555,129.03,129.02,64.10273529]
[1763980496096,0.15283555,129.03,129.02,61.3285758]
[1763980496406,0.15283555,129.03,129.02,64.10273529]
[1763980498494,0.15283555,129.03,129.02,71.8534716]
[1763980498715,0.15283555,129.03,129.02,173.8534716]
[1763980499087,0.15283555,129.03,129.02,183.64229929]
[1763980499296,0.14805457,129.05,129.04,61.02648401]
[1763980499512,0.14805457,129.05,129.04,165.8006435]
[1763980500628,0.14805457,129.05,129.04,162.88432244]
[1763980501123,0.14805457,129.05,129.04,175.44730962]
[1763980501919,0.14805457,129.05,129.04,183.33900621]
[1763980502294,0.14805457,129.05,129.04,186.44447571]
[1763980502491,0.14805457,129.05,129.04,220.84111367]
[1763980502726,0.15603902,129.06,129.05,51.35194926]
[1763980503022,0.15603902,129.06,129.05,65.22274671]
[1763980503222,0.15603902,129.06,129.05,9.78882769]
[1763980503413,0.15603902,129.06,129.02,12.56298718]
[1763980503725,2.77415949,129.03,129.01,39.13934909]
[1763980504210,2.77415949,129.04,129.01,39.13934909]
[1763980504394,2.77415949,129.05,129.01,39.13934909]
[1763980505395,0.96831667,129.09,129.01,41.91350858]
[1763980505594,2.77415949,129.07,129.02,12.56298718]
[1763980505797,18.12096,129.09,129.03,2.77415949]
[1763980506117,0.16319905,129.02,129.01,51.70233627]
[1763980506624,0.16319905,129.02,129.01,56.63230532]
[1763980507117,0.16319905,129.02,129.01,48.92817678]
[1763980507416,0.16319905,129.02,129.01,39.13934909]
[1763980508519,0.16319905,129.02,129.01,64.52580399]
[1763980509014,0.16319905,129.02,129.01,49.07033835]
[1763980509220,0.16319905,129.02,129.01,56.77446689]
[1763980509806,0.16319905,129.02,129.01,64.52580399]
[1763980510498,0.15582319,129.04,129.03,70.36540875]
[1763980510698,0.15582319,129.04,129.03,78.06953729]
[1763980514199,0.15582319,129.04,129.03,60.57658106]
[1763980517926,0.15582319,129.04,129.03,72.64939669]
[1763980518105,0.15582319,129.04,129.03,60.57658106]
[1763980518311,0.15582319,129.04,129.03,72.64939669]
[1763980518905,0.15582319,129.04,129.03,60.57658106]
[1763980521016,0.15582319,129.04,129.03,72.64939669]
[1763980521220,0.15582319,129.04,129.03,192.18836]
[1763980521518,0.15582319,129.04,129.03,195.29407062]
[1763980521927,0.15582319,129.04,129.03,3.10571062]
[1763980522131,0.15582319,129.04,129.03,12.07281563]
[1763980522339,0.15582319,129.04,129.03,21.86164332]
[1763980522923,0.15582319,129.04,129.01,51.21216472]
[1763980523118,0.15582319,129.04,129.03,22.00380489]
[1763980523317,0.15582319,129.04,129.02,12.07281563]
[1763980523535,0.15582319,129.04,129.02,9.78882769]
[1763980523733,0.15582319,129.04,129.01,39.13934909]
[1763980524143,0.15582319,129.04,129.01,51.21216472]
[1763980524831,0.15582319,129.04,129.01,54.31884018]
[1763980525418,12.07281563,129.07,129.02,12.07281563]
[1763980525634,13.04120732,129.08,129.02,12.07281563]
[1763980525849,13.04120732,129.08,129.03,12.07281563]
[1763980526219,0.16664307,129.03,129.02,12.07281563]
[1763980526548,0.16664307,129.03,129.02,4.33332411]
[1763980527046,0.16664307,129.03,129.01,39.13934909]
[1763980527426,0.16664307,129.03,129.02,4.33332411]
[1763980527624,0.16664307,129.03,129.01,43.4726732]
[1763980528239,0.16664307,129.03,129.02,4.33332411]
[1763980528547,0.15745994,129.06,129.05,27.90978769]
[1763980528745,0.15050524,129.1,129.06,9.78882769]
[1763980528921,0.15050524,129.1,129.07,0.14216157]
[1763980529124,0.15050524,129.1,129.07,4.47548568]
[1763980529430,0.15050524,129.1,129.07,35.49026075]
[1763980529631,0.15050524,129.1,129.08,14.1221518]
[1763980530150,0.15050524,129.1,129.08,9.78882769]
[1763980530328,0.15050524,129.1,129.08,14.26431337]
[1763980530529,0.15050524,129.1,129.08,21.98329941]
[1763980531150,0.15050524,129.1,129.08,29.73043297]
[1763980533661,0.15050524,129.1,129.08,9.93098926]
[1763980533958,0.15050524,129.1,129.08,21.98329941]
[1763980534323,0.15050524,129.1,129.08,84.08329941]
[1763980536477,0.15050524,129.1,129.08,91.83043297]
[1763980536886,0.15050524,129.1,129.08,193.83043297]
[1763980537659,0.15050524,129.1,129.08,243.83043297]
[1763980537899,0.15050524,129.1,129.09,0.14216157]
[1763980538060,0.15050524,129.1,129.09,21.98329941]
[1763980538994,0.15050524,129.1,129.09,25.087323]
[1763980540093,0.15050524,129.1,129.09,20.78154627]
[1763980540280,0.15050524,129.1,129.09,87.04516143]
[1763980540466,0.15050524,129.1,129.09,74.15231015]
[1763980541190,0.15050524,129.1,129.09,62.1]
[1763980543675,12.22246719,129.12,129.09,62.1]
[1763980543676,0.17015704,129.12,129.11,1.99999999]
[1763980543881,0.1,129.18,129.16,0.14216157]
[1763980544082,0.1,129.18,129.17,21.98329941]
[1763980544270,0.1,129.18,129.17,29.7250351]
[1763980544467,0.1,129.18,129.17,15.15512983]
[1763980544676,0.1,129.18,129.17,3.10281968]
[1763980544891,0.1,129.18,129.15,12.05231015]
[1763980545092,0.1,129.18,129.14,12.15231015]
[1763980545281,0.1,129.18,129.14,24.2046203]
[1763980545477,0.1,129.18,129.14,12.15231015]
[1763980545693,0.1,129.18,129.15,12.05231015]
[1763980546206,0.15514731,129.16,129.15,12.05231015]
[1763980547198,0.15514731,129.16,129.14,3.10354191]
[1763980547499,0.15514731,129.16,129.15,12.05231015]
[1763980549281,0.15514731,129.16,129.14,12.05231015]
[1763980550181,0.15514731,129.16,129.13,12.05231015]
[1763980550375,0.15514731,129.16,129.13,74.15231015]
[1763980550584,0.15514731,129.16,129.13,62.1]
[1763980550803,0.15514731,129.16,129.13,74.15231015]
[1763980551480,0.15514731,129.16,129.13,62.1]
[1763980551680,0.15514731,129.16,129.13,74.15231015]
[1763980552102,0.15514731,129.16,129.13,62.1]
[1763980552303,12.20745746,129.16,129.11,74.15231015]
[1763980552886,12.20745746,129.16,129.11,62.1]
[1763980553212,12.05231015,129.15,129.11,62.1]
[1763980554510,0.15514731,129.16,129.11,62.1]
[1763980554706,0.15514731,129.16,129.12,12.05231015]
[1763980554907,0.15514731,129.16,129.13,12.05231015]
[1763980555296,0.15514731,129.16,129.12,12.05231015]
[1763980556939,0.15514731,129.16,129.11,62.1]
[1763980557214,9.943975,129.16,129.11,62.1]
[1763980557426,12.05231015,129.14,129.11,62.1]
[1763980558904,30.32841746,129.16,129.11,74.15231015]
[1763980559101,18.27610731,129.16,129.12,12.05231015]
[1763980559630,18.27610731,129.16,129.11,74.15231015]
[1763980559631,30.32841746,129.16,129.11,74.15231015]
[1763980559797,30.32841746,129.16,129.11,62.1]
[1763980559997,30.32841746,129.16,129.11,74.15231015]
[1763980560216,18.27610731,129.16,129.12,12.05231015]
[1763980560924,18.27610731,129.16,129.13,12.05231015]
[1763980561239,0.15514731,129.16,129.13,12.05231015]
[1763980561415,0.15514731,129.16,129.13,74.15231015]
[1763980562038,0.15514731,129.16,129.13,62.1]
[1763980562207,0.15514731,129.16,129.13,74.15231015]
[1763980562402,0.15514731,129.16,129.13,62.1]
[1763980562813,0.15514731,129.16,129.14,12.05231015]
[1763980563046,0.15514731,129.16,129.15,12.05231015]
[1763980563220,0.15514731,129.16,129.15,74.15231015]
[1763980565536,0.1,129.18,129.15,74.15231015]
[1763980566244,0.1,129.18,129.15,62.1]
[1763980566245,0.15139116,129.16,129.15,62.1]
[1763980567038,0.15139116,129.16,129.15,12.05231015]
[1763980569237,0.15139116,129.16,129.15,74.15231015]
[1763980570818,0.15139116,129.16,129.15,176.15231015]
[1763980571961,0.15139116,129.16,129.15,193.82623398]
[1763980572118,0.15853639,129.19,129.18,61.54525434]
[1763980572443,0.15853639,129.19,129.18,73.59756449]
[1763980574211,0.15853639,129.19,129.18,61.54525434]
[1763980574815,0.15853639,129.19,129.18,73.59756449]
[1763980575940,0.15853639,129.19,129.18,175.59756449]
[1763980576632,0.15853639,129.19,129.18,163.54525434]
[1763980579925,0.15853639,129.19,129.18,171.23104504]
[1763980580931,0.15853639,129.19,129.18,163.54525434]
[1763980581852,0.15853639,129.19,129.18,61.54525434]
[1763980582958,7.84432709,129.19,129.18,61.54525434]
[1763980584117,7.84432709,129.19,129.14,163.54525434]
[1763980584323,7.6857907,129.16,129.14,61.54525434]
[1763980585142,0.15853639,129.19,129.14,61.54525434]
[1763980585327,7.6857907,129.17,129.14,61.54525434]
[1763980586246,0.16873191,129.15,129.14,61.54525434]
[1763980586634,0.16873191,129.15,129.14,69.23104504]
[1763980587227,0.16873191,129.15,129.14,181.1620343]
[1763980587436,0.16873191,129.15,129.14,188.90556844]
[1763980591040,0.16873191,129.15,129.14,212.20556844]
[1763980591550,0.15610353,129.16,129.15,28.05194926]
[1763980591751,0.15610353,129.16,129.15,35.73773996]
[1763980592531,0.15610353,129.16,129.15,199.2829943]
[1763980593229,0.15610353,129.16,129.15,207.02592887]
[1763980593428,0.15610353,129.16,129.15,199.34013817]
[1763980593754,0.15610353,129.16,129.15,207.02592887]
[1763980596558,0.15610353,129.16,129.15,230.32592887]
[1763980596738,0.26129962,129.22,129.21,60.50963312]
[1763980597063,0.26129962,129.22,129.21,162.50963312]
[1763980603430,0.26129962,129.22,129.21,68.19542382]
[1763980603834,0.26129962,129.22,129.21,60.50963312]
[1763980605590,0.1,129.22,129.18,86.31638382]
[1763980605751,7.7857907,129.22,129.18,60.50963312]
[1763980605943,7.6857907,129.21,129.18,60.50963312]
[1763980606264,0.13971309,129.19,129.18,60.50963312]
[1763980609940,0.13971309,129.19,129.18,63.27691663]
[1763980611354,0.13971309,129.19,129.18,60.50963312]
[1763980611561,0.13971309,129.19,129.18,162.50963312]
[1763980614476,0.13971309,129.19,129.18,165.96963312]
[1763980615547,0.13971309,129.19,129.18,162.50963312]
[1763980615754,0.13971309,129.19,129.18,165.96963312]
[1763980616776,0.13971309,129.19,129.18,168.73691663]
[1763980620251,0.13971309,129.19,129.18,165.96963312]
[1763980621456,0.13971309,129.19,129.18,168.73691663]
[1763980623168,0.13971309,129.19,129.18,197.47817632]
[1763980623379,0.1691997,129.2,129.19,70.30090929]
[1763980623683,0.1691997,129.2,129.19,73.0681928]
[1763980624176,0.1691997,129.2,129.19,70.30090929]
[1763980624358,0.1691997,129.2,129.19,73.0681928]
[1763980624558,0.1691997,129.2,129.19,63.80992003]
[1763980625561,0.1,129.22,129.19,63.80992003]
[1763980625756,2.86728351,129.22,129.2,3.44]
[1763980626263,0.1632475,129.21,129.2,3.44]
[1763980626471,2.93053101,129.21,129.2,3.44]
[1763980627066,21.05149101,129.21,129.2,3.44]
[1763980627985,2.93053101,129.21,129.2,3.44]
[1763980628287,2.93053101,129.21,129.19,3.44]
[1763980629909,20.88824351,129.2,129.14,60.36992003]
[1763980630071,2.76728351,129.17,129.15,3.44]
[1763980630387,2.76728351,129.19,129.15,63.80992003]
[1763980632281,2.76728351,129.18,129.15,63.80992003]
[1763980632488,18.12096,129.2,129.15,63.80992003]
[1763980632489,2.76728351,129.17,129.15,63.80992003]
[1763980633387,2.76728351,129.16,129.15,63.80992003]
[1763980633973,19.25162488,129.21,129.15,63.80992003]
[1763980633974,2.76728351,129.17,129.15,63.80992003]
[1763980635996,2.76728351,129.16,129.15,60.36992003]
[1763980636196,2.76728351,129.16,129.14,3.44]
[1763980636372,2.76728351,129.15,129.12,3.44]
[1763980636690,4.32811191,129.15,129.12,63.80992003]
[1763980637177,4.32811191,129.14,129.12,63.80992003]
[1763980639210,18.12096,129.18,129.12,63.80992003]
[1763980639400,10.91949257,129.21,129.12,165.80992003]
[1763980639702,4.32811191,129.17,129.12,165.80992003]
[1763980639870,4.32811191,129.16,129.12,162.36992003]
[1763980640073,4.32811191,129.16,129.13,3.44]
[1763980640278,4.32811191,129.17,129.13,3.44]
[1763980641198,4.32811191,129.16,129.13,3.44]
[1763980642591,4.32811191,129.18,129.13,7.76811191]
[1763980643092,4.32811191,129.17,129.13,7.76811191]
[1763980643473,4.32811191,129.16,129.13,3.44]
[1763980644308,18.12096,129.17,129.12,60.36992003]
[1763980644523,18.12096,129.17,129.09,102.0]
[1763980644524,4.32811191,129.13,129.09,60.36992003]
[1763980644795,4.32811191,129.11,129.1,3.44]
[1763980644999,4.32811191,129.12,129.1,3.44]
[1763980646190,0.15000828,129.11,129.1,3.44]
[1763980647826,0.15000828,129.11,129.1,68.13803194]
[1763980647975,0.15000828,129.11,129.1,78.0690212]
[1763980648482,0.14409125,129.12,129.11,60.21991175]
[1763980648682,0.14409125,129.12,129.11,64.54802366]
[1763980650085,0.14409125,129.12,129.11,60.21991175]
[1763980650306,0.14409125,129.12,129.11,64.54802366]
[1763980653106,0.14409125,129.12,129.11,166.54802366]
[1763980653733,0.14409125,129.12,129.11,86.55245826]
[1763980654029,0.14409125,129.12,129.11,93.09600017]
[1763980654418,0.14472603,129.13,129.12,27.90978769]
[1763980654605,0.14472603,129.13,129.12,36.56601151]
[1763980655036,0.16151361,129.14,129.13,0.14216157]
[1763980655229,0.16151361,129.14,129.13,15.65440729]
[1763980658536,0.16151361,129.14,129.13,18.75746768]
[1763980659036,0.1,129.22,129.18,59.4389849]
[1763980659333,4.42811191,129.22,129.18,164.8789849]
[1763980659638,22.54907191,129.22,129.18,164.8789849]
[1763980660117,18.22096,129.22,129.18,169.20709681]
[1763980660512,0.1,129.22,129.18,164.8789849]
[1763980661611,22.54907191,129.22,129.18,164.8789849]
[1763980664746,18.22096,129.22,129.18,164.8789849]
[1763980665045,22.54907191,129.22,129.18,164.8789849]
[1763980666218,0.16712322,129.19,129.18,164.8789849]
[1763980667342,0.16712322,129.19,129.18,169.20709681]
[1763980667526,0.16712322,129.19,129.18,164.8789849]
[1763980667733,0.16712322,129.19,129.18,169.20709681]
[1763980669454,0.16901226,129.2,129.19,59.27186168]
[1763980669634,0.16901226,129.2,129.19,63.59997359]
[1763980670653,0.16901226,129.2,129.19,59.27186168]
[1763980671748,0.16901226,129.2,129.19,63.59997359]
[1763980673548,0.16901226,129.2,129.19,165.59997359]
[1763980677084,0.16901226,129.2,129.19,173.48267235]
[1763980677345,0.24698004,129.22,129.21,58.96312979]
[1763980677551,0.24698004,129.22,129.21,178.66223096]
[1763980677939,0.24698004,129.22,129.21,181.76360719]
[1763980678742,0.24698004,129.22,129.21,189.50294625]
[1763980678943,0.24698004,129.22,129.21,181.76360719]
[1763980679643,0.24698004,129.22,129.21,164.20666759]
[1763980679846,0.24698004,129.22,129.21,171.9747795]
[1763980680758,0.24698004,129.22,129.21,189.50294625]
[1763980680978,0.16035252,129.23,129.22,9.78882769]
[1763980681281,0.26111131,129.24,129.23,18.44505151]
[1763980681585,0.26111131,129.24,129.23,21.88505151]
[1763980681947,0.26111131,129.24,129.23,17.5569396]
[1763980683554,0.26111131,129.24,129.23,25.29508089]
[1763980683770,0.26111131,129.24,129.23,17.5569396]
[1763980684462,0.26111131,129.24,129.23,25.29508089]
[1763980684662,0.26111131,129.24,129.23,4.47027348]
[1763980684971,0.16360884,129.27,129.25,58.55908281]
[1763980685178,0.16360884,129.27,129.25,185.99512788]
[1763980685383,0.1466973,129.28,129.26,14.25910117]
[1763980685574,0.1,129.32,129.28,0.14216157]
[1763980685887,0.1,129.32,129.28,165.02935629]
[1763980686174,0.26553849,129.29,129.28,167.98712884]
[1763980686379,0.26553849,129.29,129.28,164.88719472]
[1763980687081,0.26553849,129.29,129.28,3.44]
[1763980687379,0.26553849,129.29,129.28,7.76811191]
[1763980688557,0.26553849,129.29,129.28,3.44]
[1763980688774,0.26553849,129.29,129.28,7.76811191]
[1763980689184,0.26553849,129.29,129.28,3.44]
[1763980689359,0.26553849,129.29,129.28,7.76811191]
[1763980691087,0.26553849,129.29,129.28,3.44]
[1763980691461,0.26553849,129.29,129.28,7.76811191]
[1763980691668,0.26553849,129.29,129.28,171.86811191]
[1763980692064,0.26553849,129.29,129.28,69.86811191]
[1763980692269,0.26553849,129.29,129.28,70.01027348]
[1763980692561,0.26553849,129.29,129.28,73.1102076]
[1763980692869,0.26553849,129.29,129.28,80.84535611]
[1763980693269,0.26553849,129.29,129.28,73.1102076]
[1763980694375,0.26553849,129.29,129.28,72.96804603]
[1763980694557,0.26553849,129.29,129.28,69.86811191]
[1763980694760,0.26553849,129.29,129.28,65.54]
[1763980695410,0.26553849,129.29,129.28,62.1]
[1763980695561,0.26553849,129.29,129.28,65.54]
[1763980696268,4.5936504,129.29,129.28,3.44]
[1763980696799,0.26553849,129.29,129.28,3.44]
[1763980700796,0.26553849,129.29,129.28,62.7656]
[1763980705473,0.1,129.29,129.28,62.7656]
[1763980706193,0.26670293,129.29,129.28,62.7656]
[1763980706866,3.03020457,129.29,129.28,62.7656]
[1763980707296,0.26670293,129.29,129.28,62.7656]
[1763980708894,21.15116457,129.29,129.26,59.3256]
[1763980709072,2.76350164,129.27,129.26,59.3256]
[1763980709272,2.76350164,129.27,129.26,62.7656]
[1763980710096,18.38766293,129.29,129.26,62.7656]
[1763980710397,21.15116457,129.29,129.26,62.7656]
[1763980710697,18.38766293,129.29,129.26,62.7656]
[1763980711877,18.38766293,129.29,129.26,65.52910164]
[1763980712803,18.38766293,129.29,129.26,62.7656]
[1763980714281,21.15116457,129.29,129.26,62.7656]
[1763980715284,2.76350164,129.27,129.23,59.3256]
[1763980715479,2.76350164,129.28,129.24,2.76350164]
[1763980715681,2.76350164,129.28,129.25,3.44]
[1763980715982,21.15116457,129.29,129.25,3.44]
[1763980716175,0.26670293,129.29,129.25,65.52910164]
[1763980717975,0.26670293,129.29,129.26,2.76350164]
[1763980718194,0.26670293,129.29,129.27,3.44]
[1763980718387,0.26670293,129.29,129.27,6.20350164]
[1763980718790,0.26670293,129.29,129.27,3.44]
[1763980718989,0.26670293,129.29,129.28,3.44]
[1763980721480,0.26670293,129.29,129.28,62.7656]
[1763980722201,0.26670293,129.29,129.28,65.52910164]
[1763980722788,0.26670293,129.29,129.28,62.7656]
[1763980722981,0.26670293,129.29,129.28,65.52910164]
[1763980723909,0.26670293,129.29,129.28,62.7656]
[1763980724688,0.26670293,129.29,129.28,59.3256]
[1763980724888,0.26670293,129.29,129.28,62.7656]
[1763980725613,0.1,129.29,129.28,59.3256]
[1763980725921,0.1,129.29,129.28,3.44]
[1763980726217,0.26108843,129.29,129.28,3.44]
[1763980728417,0.26108843,129.29,129.28,6.20350164]
[1763980729417,0.26108843,129.29,129.28,13.93865015]
[1763980729712,0.14216641,129.31,129.28,19.87765016]
[1763980730012,0.14216641,129.31,129.3,2.76350164]
[1763980730309,0.14216641,129.31,129.3,8.56034008]
[1763980730814,0.14216641,129.31,129.3,2.76350164]
[1763980732089,0.14216641,129.31,129.3,10.63961525]
[1763980732294,0.14216641,129.31,129.3,21.69362181]
[1763980732608,0.14216641,129.31,129.3,24.79307553]
[1763980732803,0.14216641,129.31,129.3,34.58190322]
[1763980733516,0.25919301,129.32,129.31,2.90566321]
[1763980733813,0.25919301,129.32,129.31,16.1344909]
[1763980734012,0.25919301,129.32,129.31,6.34566321]
[1763980734621,0.25919301,129.32,129.31,2.76350164]
[1763980734798,0.25919301,129.32,129.31,6.20350164]
[1763980737731,0.25919301,129.32,129.3,3.09945372]
[1763980737932,0.25919301,129.32,129.31,3.44]
[1763980738993,0.25919301,129.32,129.31,6.20350164]
[1763980742536,0.25919301,129.32,129.31,16.1344909]
[1763980742902,0.25919301,129.32,129.31,23.86784485]
[1763980745418,0.1,129.32,129.31,23.86784485]
[1763980746198,0.25306836,129.32,129.31,23.86784485]
[1763980748112,0.25306836,129.32,129.31,16.1344909]
[1763980748329,0.25306836,129.32,129.31,23.86784485]
[1763980748558,0.25306836,129.32,129.31,3.42]
[1763980748762,0.25306836,129.32,129.31,6.18350164]
[1763980753349,0.25306836,129.32,129.31,2.76350164]
[1763980753648,0.25306836,129.32,129.31,6.18350164]
[1763980755542,0.25306836,129.32,129.31,17.15823073]
[1763980755721,0.25306836,129.32,129.31,9.42487678]
[1763980756733,0.25306836,129.32,129.31,26.94705842]
[1763980757666,0.25306836,129.32,129.31,19.21370447]
[1763980758155,0.25306836,129.32,129.31,26.94705842]
[1763980759660,0.25497158,129.33,129.32,0.14216157]
[1763980759969,0.25497158,129.33,129.32,26.19566321]
[1763980760751,0.25497158,129.33,129.32,27.74263528]
[1763980760925,0.25497158,129.33,129.32,35.47539123]
[1763980763125,0.25497158,129.33,129.32,53.59635123]
[1763980764046,0.14018863,129.34,129.32,63.38517892]
[1763980764364,0.14018863,129.34,129.33,31.16263528]
[1763980765268,0.2686434,129.35,129.34,0.14216157]
[1763980765577,0.1,129.35,129.34,41.84193668]
[1763980765944,0.1,129.36,129.34,44.93971015]
[1763980766162,0.1,129.36,129.35,12.18310899]
[1763980766344,0.24891364,129.36,129.35,12.18310899]
[1763980767242,0.24891364,129.36,129.35,19.91407149]
[1763980767865,0.24891364,129.36,129.35,29.70289918]
[1763980768243,0.24891364,129.36,129.35,47.82385918]
[1763980769073,0.24891364,129.36,129.35,39.20291176]
[1763980769263,0.24891364,129.36,129.35,43.51338547]
[1763980769466,0.24891364,129.36,129.35,18.26312157]
[1763980769679,0.24891364,129.36,129.35,7.87263528]
[1763980771653,0.24891364,129.36,129.35,25.39242547]
[1763980771872,0.24891364,129.36,129.35,17.66146297]
[1763980773345,0.24891364,129.36,129.32,4.31047371]
[1763980773557,0.24891364,129.36,129.33,7.73047371]
[1763980773761,0.24891364,129.36,129.35,4.31047371]
[1763980773970,0.24891364,129.36,129.35,7.73047371]
[1763980774891,0.24891364,129.36,129.35,7.87263528]
[1763980775651,0.24891364,129.36,129.35,25.39242547]
[1763980776166,0.24891364,129.36,129.35,51.78043886]
[1763980776361,0.24891364,129.36,129.35,32.80091257]
[1763980776751,0.24891364,129.36,129.35,56.09091257]
[1763980777064,0.15635312,129.37,129.36,0.14216157]
[1763980777271,0.15635312,129.37,129.36,8.76310899]
[1763980777846,0.15635312,129.37,129.36,4.45263528]
[1763980778083,0.15635312,129.37,129.36,14.24146297]
[1763980782280,0.15635312,129.37,129.36,4.45263528]
[1763980782972,0.15635312,129.37,129.36,7.87263528]
[1763980783883,0.15635312,129.37,129.36,3.42]
[1763980784981,0.15635312,129.37,129.36,7.73047371]
[1763980785585,0.1,129.38,129.36,7.73047371]
[1763980786278,0.15689801,129.37,129.36,3.42]
[1763980795888,4.46737172,129.37,129.32,4.45263528]
[1763980796074,4.46737172,129.37,129.33,3.42]
[1763980797470,4.31047371,129.36,129.33,3.42]
[1763980797861,4.46737172,129.37,129.33,3.42]
[1763980798470,0.15689801,129.37,129.34,4.31047371]
[1763980799487,4.46737172,129.37,129.33,7.73047371]
[1763980800063,4.31047371,129.36,129.33,3.42]
[1763980800310,4.31047371,129.34,129.28,18.12096]
[1763980800470,4.31047371,129.33,129.29,3.42]
[1763980800664,4.31047371,129.31,129.29,3.42]
[1763980800968,4.31047371,129.32,129.29,3.42]
[1763980801588,4.31047371,129.31,129.29,3.42]
[1763980801793,4.31047371,129.3,129.29,3.42]
[1763980802010,4.31047371,129.3,129.28,3.42]
[1763980802368,4.31047371,129.29,129.23,4.31047371]
[1763980802566,4.31047371,129.27,129.24,3.42]
[1763980803097,4.31047371,129.28,129.24,7.73047371]
[1763980803394,4.31047371,129.29,129.24,7.73047371]
[1763980803592,4.31047371,129.29,129.25,4.31047371]
[1763980803796,4.31047371,129.3,129.26,4.31047371]
[1763980804096,4.31047371,129.3,129.25,4.31047371]